bitfinex/quotes_ETHUSD_20240827
["timestamp","ask_amount","ask_price","bid_price","bid_amount"]
[1724720668148,2.920944,2691.1,2690.3,0.0743293]
[1724720668354,2.920944,2691.1,2690.4,3.71687]
[1724720668686,2.3176,2691.1,2690.4,3.71687]
[1724720669254,2.3176,2691.1,2690.2,4.99100875]
[1724720669685,6.03356,2691.1,2690.2,4.99100875]
[1724720670059,6.0337,2691.0,2690.2,1.27389875]
[1724720670270,2.71293744,2691.7,2690.1,3.0]
[1724720670271,6.03384,2690.9,2690.1,3.0]
[1724720670588,6.03384,2690.9,2690.0,3.71744]
[1724720670589,2.3176,2690.8,2690.0,3.71744]
[1724720674423,2.3176,2690.8,2690.1,3.71731]
[1724720676194,2.3176,2691.2,2690.7,4.97929646]
[1724720676395,2.3176,2691.2,2691.1,3.71595]
[1724720676833,2.3176,2691.8,2691.4,3.71552]
[1724720677037,2.3176,2691.8,2691.2,3.71579]
[1724720677205,2.3176,2691.8,2691.5,3.71538]
[1724720677835,2.3176,2691.8,2691.2,4.087369]
[1724720678130,2.3176,2691.8,2691.3,3.71565]
[1724720680797,2.3176,2691.8,2691.2,0.371579]
[1724720680999,6.03258,2691.8,2691.0,3.71606]
[1724720681234,2.3176,2691.8,2691.0,3.71606]
[1724720681535,6.71459,2692.1,2690.5,7.97929646]
[1724720681536,2.3103,2691.9,2690.6,3.71661]
[1724720681727,2.3103,2691.5,2690.7,3.7165]
[1724720682051,6.0257,2691.5,2690.6,0.671661]
[1724720682357,6.0257,2691.5,2690.6,7.388281]
[1724720682495,6.0257,2691.5,2690.7,3.71647]
[1724720682703,2.3103,2691.5,2690.8,3.71625]
[1724720682931,2.3103,2691.5,2691.0,3.71605]
[1724720683256,2.3103,2691.5,2690.9,3.71621]
[1724720683398,2.3103,2691.5,2690.8,3.71625]
[1724720683597,2.3103,2691.5,2690.9,3.71622]
[1724720683858,2.3103,2691.5,2691.0,3.71607]
[1724720684352,3.71467,2692.1,2691.2,3.71577]
[1724720684836,2.3103,2692.0,2691.3,3.71563]
[1724720685133,6.02501,2692.0,2691.2,3.71577]
[1724720685337,3.71488,2691.9,2691.2,3.71577]
[1724720685638,2.3103,2692.0,2691.3,3.71565]
[1724720685838,2.3103,2691.8,2691.1,6.71594]
[1724720686012,2.3103,2691.8,2691.2,3.71572]
[1724720688205,2.3103,2691.8,2691.1,3.0]
[1724720688410,2.3103,2691.8,2691.1,6.71584]
[1724720688809,2.3103,2691.8,2691.2,3.7158]
[1724720689011,2.3103,2691.8,2691.3,3.71566]
[1724720689233,2.3103,2691.8,2691.5,3.71538]
[1724720690347,2.3103,2691.8,2691.6,3.71523]
[1724720690719,2.3103,2691.8,2691.7,3.71512]
[1724720691051,2.3103,2692.3,2691.7,3.71512]
[1724720691234,3.22576028,2692.3,2691.7,3.71512]
[1724720691820,2.3103,2692.3,2691.7,3.715]
[1724720692066,2.3103,2692.3,2692.2,3.71443]
[1724720692931,0.1302328,2692.4,2692.2,3.71443]
[1724720694027,0.1302328,2692.4,2692.1,3.71456]
[1724720694229,2.3103,2692.3,2691.4,3.0]
[1724720694434,2.3103,2692.3,2691.5,3.3]
[1724720694435,6.02469,2692.3,2691.5,3.3]
[1724720694628,6.02469,2692.3,2691.5,0.3]
[1724720694833,3.71447,2692.2,2691.5,0.3]
[1724720695059,3.71459,2692.1,2691.3,3.7156]
[1724720695355,3.71485,2691.9,2691.2,3.71572]
[1724720695558,7.44227588,2691.8,2691.0,3.71602]
[1724720695767,3.71528,2691.6,2690.9,4.459347]
[1724720696563,3.71528,2691.6,2691.0,3.71606]
[1724720696922,3.71559,2691.4,2690.7,3.71642]
[1724720697123,3.71541,2691.5,2690.8,6.71635]
[1724720697331,3.05452759,2691.7,2690.9,3.7161]
[1724720697537,2.3103,2691.7,2691.1,3.71586]
[1724720699370,2.3103,2691.7,2691.1,7.4317]
[1724720699565,2.3103,2691.7,2691.1,7.43167]
[1724720700029,2.3103,2691.7,2691.1,7.4317]
[1724720700449,2.3103,2691.7,2691.2,3.71581]
[1724720700957,2.3103,2691.7,2691.1,3.71583]
[1724720701157,2.912829,2691.7,2691.1,3.71583]
[1724720701648,6.627979,2691.7,2691.0,3.71598]
[1724720701962,2.912829,2691.7,2691.1,3.7159]
[1724720702262,2.912829,2691.7,2691.2,3.7158]
[1724720702443,2.3103,2691.7,2691.2,3.7158]
[1724720703037,2.3103,2691.7,2691.1,3.7159]
[1724720703297,14.1244628,2692.4,2691.2,0.07431008]
[1724720703499,0.1302328,2692.4,2691.9,4.97147552]
[1724720703788,0.1302328,2692.4,2692.3,3.71429]
[1724720704266,0.1302328,2692.4,2692.3,8.24573751]
[1724720704564,3.84628858,2693.5,2692.4,0.58108026]
[1724720704769,3.71113,2694.6,2694.0,3.71194]
[1724720704770,2.3437,2694.6,2694.0,3.71194]
[1724720704974,2.3437,2694.6,2693.8,3.71222]
[1724720705264,3.71126,2694.5,2693.5,3.7125]
[1724720705470,0.605496,2694.4,2693.6,6.71246]
[1724720705768,0.605496,2694.4,2693.6,3.0]
[1724720706181,4.316916,2694.4,2693.6,3.0]
[1724720706504,4.316916,2694.4,2693.6,6.71249]
[1724720706988,0.605496,2694.4,2693.6,6.71249]
[1724720707282,4.316896,2694.4,2693.6,7.383739]
[1724720707425,0.605496,2694.4,2693.6,7.383739]
[1724720707630,3.7114,2694.4,2693.6,3.671249]
[1724720707900,6.05485,2694.6,2693.6,3.671249]
[1724720708028,3.71129,2694.5,2693.5,3.7126]
[1724720708234,3.71185,2694.1,2693.1,3.0]
[1724720708537,6.05524,2694.3,2692.7,4.97147552]
[1724720708733,6.05524,2694.3,2692.8,3.58108283]
[1724720709290,2.3437,2694.3,2693.7,3.71229]
[1724720709564,2.3437,2694.3,2693.8,3.71219]
[1724720709804,2.3437,2694.3,2693.9,3.71209]
[1724720709999,2.3437,2694.3,2694.0,3.71192]
[1724720710428,2.3437,2694.3,2693.9,3.71207]
[1724720710737,2.3437,2694.3,2693.8,3.71219]
[1724720711094,2.57807,2694.3,2693.7,3.71235]
[1724720711406,2.57807,2694.3,2693.5,3.71261]
[1724720711998,2.57807,2694.3,2693.5,3.7126]
[1724720712190,2.57807,2694.3,2693.8,3.71222]
[1724720712986,2.57807,2694.3,2693.6,3.71242]
[1724720713496,2.57807,2694.3,2693.7,3.71232]
[1724720713651,2.3437,2694.3,2693.7,3.71232]
[1724720713832,2.3437,2694.3,2693.7,3.71227]
[1724720714032,2.3007,2694.2,2693.0,3.7133]
[1724720714257,4.97147552,2694.3,2692.9,3.71335]
[1724720714258,2.3007,2693.6,2692.9,3.71335]
[1724720714564,2.3007,2693.6,2693.0,3.71331]
[1724720714767,2.3007,2694.0,2693.0,0.742677]
[1724720714941,2.3007,2694.0,2693.5,3.71258]
[1724720715141,2.3007,2694.0,2693.5,3.71262]
[1724720715330,2.3007,2694.0,2693.5,7.42515]
[1724720715530,2.3007,2694.0,2693.7,3.71234]
[1724720716032,3.7113,2694.5,2693.7,3.71227]
[1724720716234,2.3007,2694.7,2694.3,3.71144]
[1724720716438,2.3007,2695.0,2694.5,3.71124]
[1724720716628,2.54379328,2695.0,2694.3,3.71144]
[1724720716964,3.7108,2694.9,2693.9,3.71202]
[1724720717165,3.71129,2694.5,2693.7,6.71227]
[1724720717365,3.71129,2694.5,2693.8,3.71221]
[1724720717665,2.3007,2694.6,2693.9,6.71208]
[1724720717867,2.3007,2694.6,2693.9,3.71199]
[1724720718369,2.3007,2694.6,2693.7,3.0]
[1724720718370,3.71156,2694.3,2693.7,3.0]
[1724720718546,3.71156,2694.3,2693.6,3.0]
[1724720718749,2.901869,2694.6,2693.6,3.0]
[1724720718934,2.901869,2694.6,2693.7,3.71227]
[1724720718935,6.613079,2694.6,2693.7,3.71227]
[1724720719139,3.71126,2694.5,2693.8,6.71221]
[1724720719338,0.6613129,2694.4,2693.8,6.71221]
[1724720719860,4.3727329,2694.4,2693.8,3.0]
[1724720720185,4.3727129,2694.4,2693.8,3.0]
[1724720720484,0.6613129,2694.4,2693.8,3.71221]
[1724720720890,2.901869,2694.6,2693.8,3.71221]
[1724720721038,6.613009,2694.6,2693.8,3.71221]
[1724720722536,6.613009,2694.6,2693.9,3.71208]
[1724720722981,3.71182,2694.1,2693.4,3.71275]
[1724720723157,0.601252,2694.0,2693.4,3.71275]
[1724720723617,4.97147552,2693.6,2692.7,3.71365]
[1724720723749,2.3007,2693.5,2692.3,3.71419]
[1724720724079,2.3007,2693.5,2692.1,3.71447]
[1724720724080,3.71347,2692.9,2692.1,3.71447]
[1724720724254,3.71362,2692.8,2692.1,3.71447]
[1724720724455,3.71376,2692.7,2691.9,7.42948]
[1724720724659,3.71376,2692.7,2692.0,3.71466]
[1724720725045,1.46992655,2692.8,2691.2,4.97147552]
[1724720725046,3.71411,2692.5,2691.8,3.71497]
[1724720725359,3.71411,2692.5,2691.7,7.43008]
[1724720725977,7.42823,2692.5,2691.7,3.71504]
[1724720726185,0.972893,2692.4,2691.7,7.43007]
[1724720726595,0.972893,2692.4,2691.7,3.71503]
[1724720726882,2.3007,2692.6,2692.1,3.71448]
[1724720727245,2.3007,2692.6,2691.9,3.71473]
[1724720728256,3.71402,2692.5,2691.7,3.715]
[1724720728460,3.71437,2692.3,2691.1,0.36316616]
[1724720728783,3.71408,2692.5,2691.5,3.71535]
[1724720728784,3.71446,2692.2,2691.5,3.71535]
[1724720728951,2.2999,2692.1,2691.4,3.71545]
[1724720729285,2.2999,2692.1,2691.6,3.71524]
[1724720729801,2.2999,2692.1,2691.6,3.71517]
[1724720730084,2.2999,2692.1,2691.7,3.71503]
[1724720730284,2.2999,2692.1,2691.6,7.43034]
[1724720730492,2.2999,2692.1,2691.6,3.71517]
[1724720731297,2.2999,2692.1,2691.7,3.7151]
[1724720731503,12.25147552,2692.7,2691.6,3.71517]
[1724720731504,7.28,2692.7,2691.8,3.210027]
[1724720731659,2.2999,2692.9,2692.4,3.71409]
[1724720732082,2.2999,2692.9,2692.4,3.71407]
[1724720732398,7.28,2693.2,2692.7,3.7137]
[1724720732700,7.28,2693.2,2692.9,3.71345]
[1724720732993,7.28,2693.2,2692.7,0.742746]
[1724720733162,7.28,2693.2,2692.6,3.71387]
[1724720733363,10.99315,2693.2,2692.5,3.71394]
[1724720734006,7.28,2693.2,2692.5,3.71394]
[1724720734299,7.28,2693.2,2692.7,7.42748]
[1724720734493,7.28,2693.2,2692.7,3.71374]
[1724720734680,7.28,2693.2,2692.5,3.71391]
[1724720735329,6.01282,2693.3,2692.8,3.71351]
[1724720735330,2.2999,2693.3,2692.8,3.71351]
[1724720735669,2.2999,2693.3,2692.7,3.71362]
[1724720736404,6.01284,2693.3,2692.7,3.71362]
[1724720736701,2.2499,2693.3,2692.5,3.71397]
[1724720736897,3.71323,2693.1,2692.3,3.71425]
[1724720737098,7.42652,2693.1,2692.3,7.42846]
[1724720737397,3.71356,2692.9,2692.2,3.0]
[1724720737597,7.42712,2692.9,2692.1,7.42894]
[1724720737763,3.71356,2692.9,2692.1,7.42894]
[1724720737969,4.456241,2692.9,2692.1,3.71445]
[1724720738365,0.742681,2692.9,2692.0,7.38]
[1724720738591,3.71389,2692.6,2692.0,7.38]
[1724720738800,3.71415,2692.4,2692.0,7.38]
[1724720739122,3.71389,2692.6,2692.0,7.38]
[1724720739275,7.42787,2692.6,2692.0,7.38]
[1724720739601,2.2999,2692.5,2692.0,7.38]
[1724720739802,2.2999,2692.5,2691.3,16.1256]
[1724720739803,3.272677,2692.5,2691.5,3.71528]
[1724720740004,3.71449,2692.2,2691.5,3.71528]
[1724720740405,3.71439,2692.3,2691.6,3.71521]
[1724720740611,3.71439,2692.3,2691.6,7.43039]
[1724720741070,3.71439,2692.3,2691.6,3.71518]
[1724720741274,3.71438,2692.3,2691.6,3.71518]
[1724720741513,2.4577,2692.1,2691.4,7.43088]
[1724720741807,2.4577,2692.1,2691.5,3.71532]
[1724720741998,2.4577,2692.1,2691.5,3.71531]
[1724720742184,2.4577,2692.1,2691.2,3.71578]
[1724720742374,2.4577,2692.1,2691.7,3.71502]
[1724720744105,7.28,2692.5,2692.0,3.71469]
[1724720744290,2.4577,2692.9,2691.8,2.737602]
[1724720744291,2.4577,2692.9,2692.2,3.71442]
[1724720744494,2.4577,2692.9,2692.4,3.71402]
[1724720744694,2.4577,2692.9,2692.3,3.71418]
[1724720744870,6.17118,2692.9,2692.2,3.71436]
[1724720745071,6.17118,2692.9,2691.8,10.117602]
[1724720745072,3.71398,2692.6,2691.8,15.181312]
[1724720745312,6.17181,2692.5,2691.9,3.0]
[1724720745700,2.4577,2692.5,2691.9,6.71473]
[1724720745906,6.17138,2692.8,2692.1,3.7145]
[1724720746222,3.71374,2692.7,2691.9,6.71472]
[1724720746386,3.71374,2692.7,2691.9,8.49568]
[1724720746585,3.71374,2692.7,2692.0,3.71468]
[1724720746991,6.17138,2692.8,2692.1,3.71453]
[1724720747305,2.4577,2692.8,2692.3,3.71429]
[1724720747501,2.4577,2692.8,2691.7,3.71504]
[1724720747502,2.4577,2692.7,2690.8,12.00199162]
[1724720747701,6.17208,2692.3,2691.5,3.7153]
[1724720747913,6.17208,2692.3,2691.6,3.71525]
[1724720748122,2.4577,2692.3,2691.6,3.71515]
[1724720748318,6.17208,2692.3,2691.4,3.71549]
[1724720748518,4.82879555,2692.2,2691.4,7.43091]
[1724720748691,4.97147552,2691.5,2690.8,3.71626]
[1724720748892,4.97147552,2691.5,2690.6,3.71659]
[1724720748893,4.97147552,2691.2,2690.6,3.71659]
[1724720749229,2.4577,2691.3,2690.5,3.71677]
[1724720749594,6.17339,2691.3,2690.5,3.71677]
[1724720749788,3.71586,2691.2,2690.1,3.71731]
[1724720750013,4.97147552,2691.5,2689.9,4.14412908]
[1724720750014,4.97147552,2690.9,2689.9,4.14412908]
[1724720750215,2.4577,2690.5,2689.7,3.71787]
[1724720750929,2.4577,2690.5,2689.8,3.71773]
[1724720752703,2.4577,2690.5,2689.3,2.3661]
[1724720752704,2.4577,2690.5,2689.9,6.71747]
[1724720752927,2.4577,2690.5,2690.0,0.671747]
[1724720753459,2.4577,2690.5,2689.9,3.0]
[1724720753597,3.71713,2690.3,2689.5,3.71812]
[1724720753997,2.4577,2690.2,2689.5,3.71812]
[1724720754228,2.4577,2690.2,2689.5,3.71816]
[1724720754531,2.4577,2690.2,2689.6,3.71801]
[1724720754698,2.4577,2690.2,2689.7,3.71786]
[1724720755300,2.4577,2690.2,2689.5,0.371827]
[1724720755495,2.4577,2690.2,2689.5,4.089977]
[1724720755909,7.28,2690.8,2690.1,3.71732]
[1724720755910,2.3905,2690.6,2690.1,3.71732]
[1724720756313,2.3905,2690.6,2690.2,3.71714]
[1724720756509,2.3905,2690.6,2690.3,3.717]
[1724720756715,2.3905,2690.6,2690.1,3.71732]
[1724720756898,2.3905,2690.6,2690.1,0.743487]
[1724720757116,2.3905,2690.6,2690.0,3.71747]
[1724720757901,2.3405,2690.6,2690.0,3.71747]
[1724720758309,7.28,2691.1,2690.5,3.71666]
[1724720758539,3.7157,2691.3,2690.4,3.71691]
[1724720758717,3.71565,2691.4,2690.5,0.371691]
[1724720759034,3.71591,2691.2,2690.4,3.71682]
[1724720759699,3.71591,2691.2,2690.5,3.71669]
[1724720759900,3.71591,2691.2,2690.3,3.0]
[1724720759901,3.71565,2691.4,2690.6,3.7166]
[1724720760295,3.71565,2691.4,2690.7,3.71648]
[1724720760522,4.458745,2691.4,2690.7,3.71648]
[1724720761114,2.3905,2691.3,2690.7,3.71648]
[1724720761324,3.7153,2691.6,2690.8,0.07432613]
[1724720761633,3.7153,2691.6,2690.9,3.71613]
[1724720761843,3.7153,2691.6,2690.7,7.43283]
[1724720761998,3.7154,2691.5,2690.7,8.176113]
[1724720762200,5.05388,2691.6,2690.8,3.71626]
[1724720762406,2.3905,2691.2,2690.2,3.0]
[1724720762653,3.71663,2690.7,2690.0,3.71743]
[1724720762800,3.71679,2690.5,2689.6,7.43591]
[1724720763004,3.71679,2690.5,2689.7,3.71786]
[1724720763208,2.3905,2690.4,2689.7,3.71786]
[1724720763501,2.3905,2690.4,2689.7,4.4986217]
[1724720764455,7.28,2690.6,2689.7,0.7807617]
[1724720764620,7.28,2690.6,2689.8,2.4486]
[1724720764807,3.95507,2691.1,2689.8,2.4486]
[1724720764808,7.28,2691.1,2689.8,11.13775552]
[1724720765008,7.28,2691.1,2690.6,3.71657]
[1724720765321,3.71581,2691.2,2690.7,0.371657]
[1724720766149,3.71624,2690.9,2690.2,3.71713]
[1724720766343,2.3905,2690.8,2690.2,7.43424]
[1724720766507,2.3905,2690.8,2690.2,3.71711]
[1724720767143,3.71606,2691.1,2690.2,3.7171]
[1724720767720,3.7164,2690.8,2690.0,11.09743]
[1724720767909,2.3905,2690.7,2690.1,7.827073]
[1724720768254,2.3905,2690.7,2690.3,3.71702]
[1724720768413,9.6705,2691.0,2690.3,3.71702]
[1724720769435,9.6705,2691.0,2690.4,3.71691]
[1724720770815,9.6705,2691.0,2690.1,4.109743]
[1724720770816,7.28,2691.0,2690.3,2.4486]
[1724720771012,7.28,2691.0,2690.8,3.71627]
[1724720771320,2.3905,2691.7,2691.3,3.71555]
[1724720771748,2.3905,2691.7,2691.1,7.43171]
[1724720771907,2.3905,2691.7,2691.1,3.71583]
[1724720773551,2.3905,2691.7,2691.2,3.7158]
[1724720773853,2.3905,2691.7,2691.3,4.458713]
[1724720774023,2.4512,2692.0,2691.3,0.743163]
[1724720774223,3.71486,2691.9,2691.3,0.743163]
[1724720776335,7.42983,2691.9,2691.3,0.743163]
[1724720776534,3.71498,2691.8,2691.1,3.71585]
[1724720776754,3.71522,2691.7,2691.0,3.71608]
[1724720777068,3.71522,2691.7,2690.8,3.71623]
[1724720777279,3.7159,2691.2,2690.4,3.96168]
[1724720777423,10.99577,2691.3,2690.5,0.396168]
[1724720778363,3.71582,2691.2,2690.5,0.396168]
[1724720778676,3.71583,2691.2,2690.5,0.396168]
[1724720779030,7.43178,2691.2,2690.5,0.396168]
[1724720779271,3.71583,2691.2,2690.5,0.396168]
[1724720779441,2.4512,2691.0,2690.4,3.96166]
[1724720779764,2.4512,2691.0,2690.4,7.67847]
[1724720780152,2.4512,2691.0,2690.4,3.96166]
[1724720781129,2.4512,2691.0,2690.5,3.71675]
[1724720781342,3.71583,2691.2,2690.6,0.767841]
[1724720782366,7.43175,2691.2,2690.6,0.767841]
[1724720783261,3.71596,2691.1,2690.4,3.96166]
[1724720785487,3.71609,2691.0,2690.4,3.96166]
[1724720787568,3.71609,2691.0,2690.2,3.71712]
[1724720787768,6.12028,2690.8,2690.2,3.71712]
[1724720787968,9.83672,2690.8,2690.1,1.109743]
[1724720788173,9.83672,2690.8,2690.0,6.71735]
[1724720788174,6.12028,2690.8,2690.0,6.71735]
[1724720788368,3.71665,2690.6,2690.0,3.0]
[1724720788690,3.71665,2690.6,2689.9,3.71757]
[1724720788691,7.43337,2690.6,2689.9,3.71757]
[1724720788906,3.71678,2690.5,2689.8,3.71767]
[1724720789103,3.71693,2690.4,2689.9,0.371767]
[1724720789508,7.43341,2690.6,2689.9,0.371767]
[1724720789645,3.71678,2690.5,2689.9,0.371767]
[1724720789976,3.71692,2690.4,2689.8,3.71763]
[1724720790492,2.4039,2690.3,2689.8,3.71763]
[1724720791193,2.4039,2690.3,2689.8,7.43526]
[1724720791596,6.12062,2690.6,2690.0,3.71742]
[1724720791891,3.71672,2690.6,2690.0,3.71742]
[1724720793048,10.99643,2690.8,2690.0,3.71742]
[1724720793049,14.71291,2690.8,2690.0,7.43478]
[1724720793402,7.28,2690.8,2690.1,0.07434783]
[1724720793565,7.28,2690.8,2690.3,3.71704]
[1724720793759,7.28,2690.8,2690.5,3.71677]
[1724720793963,7.28,2690.8,2690.7,3.7165]
[1724720794140,22.0339,2691.3,2690.5,7.43333]
[1724720794345,3.71583,2691.2,2690.5,4.71499659]
[1724720794547,22.0339,2691.3,2690.6,3.71654]
[1724720794849,25.74966,2691.3,2690.6,3.71654]
[1724720795091,3.71582,2691.2,2690.6,3.71654]
[1724720795404,22.0339,2691.3,2690.5,4.71499659]
[1724720795405,22.0339,2691.3,2690.7,3.71648]
[1724720796909,6.11905,2691.7,2691.1,3.71594]
[1724720797214,6.11905,2691.7,2691.0,3.71607]
[1724720797499,6.11905,2691.7,2690.9,3.71611]
[1724720797500,3.71534,2691.6,2690.9,3.71611]
[1724720797807,3.71568,2691.3,2690.7,4.55958766]
[1724720798106,3.71568,2691.3,2690.8,0.45595877]
[1724720798451,3.71552,2691.5,2690.8,0.45595877]
[1724720799306,7.43102,2691.5,2690.8,0.45595877]
[1724720799461,3.71617,2691.0,2690.2,3.71717]
[1724720799645,3.71617,2691.0,2689.9,2.4758]
[1724720799646,2.4039,2690.9,2690.4,3.71691]
[1724720800309,2.4039,2690.9,2690.3,3.71693]
[1724720800525,2.4039,2690.9,2690.3,4.460348]
[1724720800656,6.12015,2690.9,2690.3,4.460348]
[1724720801056,6.12015,2690.9,2690.1,3.71725]
[1724720801364,3.7166,2690.7,2689.9,3.71748]
[1724720801569,7.43365,2690.5,2689.7,7.4356]
[1724720801829,3.71678,2690.5,2689.7,3.71778]
[1724720802914,7.43367,2690.5,2689.7,7.43555]
[1724720803049,3.71678,2690.5,2689.8,4.461285]
[1724720803252,2.4039,2690.6,2689.9,3.71751]
[1724720803801,6.12054,2690.6,2689.9,3.71751]
[1724720803950,2.4039,2690.6,2690.1,3.71724]
[1724720809210,2.4039,2690.6,2689.9,3.71749]
[1724720809468,3.71707,2690.3,2689.6,3.71797]
[1724720809735,7.28,2690.5,2689.8,3.71773]
[1724720810226,3.71699,2690.4,2689.8,3.71773]
[1724720810689,3.71699,2690.4,2689.8,7.4354]
[1724720811027,3.71699,2690.4,2689.8,4.46121]
[1724720811398,10.99678,2690.5,2689.8,4.4612]
[1724720811605,7.28,2690.5,2690.0,3.71745]
[1724720812209,7.28,2690.5,2689.8,7.43534]
[1724720812505,10.99686,2690.5,2689.8,3.71767]
[1724720812729,10.99686,2690.5,2689.8,7.43533]
[1724720813602,10.99686,2690.5,2689.9,3.7176]
[1724720813942,10.99686,2690.5,2690.0,3.71747]
[1724720814446,10.99686,2690.5,2689.8,7.43527]
[1724720814622,14.71373,2690.5,2689.8,4.461137]
[1724720814806,3.71699,2690.4,2689.8,3.71761]
[1724720815147,2.4464,2690.3,2689.8,3.71761]
[1724720815305,2.4464,2690.3,2689.6,3.71789]
[1724720815507,6.16353,2690.3,2689.7,3.71778]
[1724720816909,2.4464,2690.3,2689.9,3.71754]
[1724720817136,2.4464,2690.3,2689.9,0.743527]
[1724720818546,7.28,2690.5,2689.9,0.743527]
[1724720818856,7.28,2690.5,2690.1,3.71723]
[1724720819153,7.28,2690.5,2689.9,7.43504]
[1724720819541,7.28,2690.5,2690.0,3.71744]
[1724720820126,3.71694,2690.4,2689.8,3.71772]
[1724720820687,3.71735,2690.1,2689.5,3.71808]
[1724720821543,2.2766,2690.1,2689.6,3.71801]
[1724720821744,5.99395,2690.1,2689.4,3.71818]
[1724720822063,3.71789,2689.7,2689.1,3.71868]
[1724720822229,3.71789,2689.7,2689.1,4.462431]
[1724720822870,10.99773,2689.9,2689.1,4.462431]
[1724720823075,10.99773,2689.9,2689.1,3.71868]
[1724720823428,10.99773,2689.9,2689.2,3.71855]
[1724720823909,2.2766,2689.8,2689.2,3.71855]
[1724720824164,2.2766,2689.8,2689.3,3.71835]
[1724720825365,5.99443,2689.8,2689.1,3.71869]
[1724720825569,11.039753,2689.8,2689.1,3.71869]
[1724720825770,7.321873,2689.8,2689.1,3.71869]
[1724720826700,3.71791,2689.7,2689.0,3.71872]
[1724720827098,2.2766,2689.6,2689.0,3.71872]
[1724720827714,3.71821,2689.5,2688.9,3.71895]
[1724720828312,3.71831,2689.4,2688.8,3.7191]
[1724720828675,0.971272,2689.5,2689.0,3.71883]
[1724720828874,0.971272,2689.5,2688.9,3.71897]
[1724720828875,2.2766,2689.6,2689.1,3.7187]
[1724720829173,2.2766,2689.6,2689.3,3.71842]
[1724720829499,2.2766,2689.6,2689.1,7.4373]
[1724720830526,2.2766,2689.6,2688.9,3.71889]
[1724720830698,2.2766,2689.6,2689.1,3.7187]
[1724720831025,2.2766,2689.6,2688.5,3.4546804]
[1724720831026,2.2766,2689.6,2689.0,3.71876]
[1724720831196,5.99463,2689.6,2689.0,3.71876]
[1724720832228,6.965876,2689.6,2689.0,3.71876]
[1724720834416,3.71819,2689.5,2688.9,7.43781]
[1724720834759,2.2766,2689.6,2689.0,3.71885]
[1724720835059,2.2766,2689.6,2688.8,3.71908]
[1724720835264,2.2766,2689.6,2689.1,3.7186]
[1724720835617,2.2766,2689.6,2689.0,3.71884]
[1724720835819,2.2766,2689.6,2689.2,3.71855]
[1724720836164,2.2766,2689.6,2689.4,3.71829]
[1724720836318,7.28,2689.9,2689.4,3.71829]
[1724720836663,10.9977,2689.9,2689.2,3.71855]
[1724720836862,3.71776,2689.8,2689.2,3.71855]
[1724720837434,2.3601,2689.7,2689.2,3.71855]
[1724720837637,6.07806,2689.7,2689.0,0.743792]
[1724720837839,6.07806,2689.7,2689.0,3.71881]
[1724720837840,3.71809,2689.6,2689.0,3.71881]
[1724720838134,3.71809,2689.6,2688.8,3.71908]
[1724720838135,3.71826,2689.5,2688.8,3.71908]
[1724720838465,3.71826,2689.5,2688.8,7.43814]
[1724720838676,3.71826,2689.5,2688.9,3.71889]
[1724720838979,2.3601,2689.6,2689.1,3.71867]
[1724720839321,6.07824,2689.6,2688.9,8.181595]
[1724720839566,6.07824,2689.6,2689.0,3.71882]
[1724720839769,2.3601,2689.6,2689.0,3.71882]
[1724720840184,6.07819,2689.6,2689.0,3.71882]
[1724720840381,6.07819,2689.6,2688.9,8.181595]
[1724720840715,3.71818,2689.5,2688.9,4.462685]
[1724720840911,3.71818,2689.5,2688.9,3.71889]
[1724720841814,3.71818,2689.5,2688.9,7.4378]
[1724720842019,3.71818,2689.5,2688.7,3.71914]
[1724720842315,2.3601,2689.4,2688.7,3.71914]
[1724720844111,2.3601,2689.4,2688.9,3.71895]
[1724720844833,2.3601,2689.4,2688.9,3.71887]
[1724720845120,7.28,2689.6,2689.0,3.7188]
[1724720845421,10.9981,2689.6,2689.0,3.7188]
[1724720848036,3.71848,2689.3,2688.7,3.71917]
[1724720848341,3.71848,2689.3,2688.7,7.43836]
[1724720850554,3.71848,2689.3,2688.7,3.71917]
[1724720850753,3.71848,2689.3,2688.7,7.43831]
[1724720851048,2.4579,2689.4,2688.7,4.462971]
[1724720851251,7.28,2689.6,2689.2,3.71847]
[1724720851554,7.28,2690.2,2689.8,3.71765]
[1724720851758,2.4579,2690.3,2689.8,3.71765]
[1724720852063,7.28,2690.5,2689.4,2.3341]
[1724720852064,7.28,2690.5,2689.6,3.71792]
[1724720852266,7.28,2690.5,2690.1,3.71725]
[1724720852476,7.28,2690.5,2689.9,3.7175]
[1724720852610,7.28,2690.5,2689.9,3.71747]
[1724720855692,7.28,2690.5,2689.9,3.7165677]
[1724720856052,7.28,2690.5,2690.0,3.71745]
[1724720856289,7.28,2690.5,2689.9,3.7165677]
[1724720857178,8.625455,2690.5,2689.9,3.7165677]
[1724720857382,8.625455,2690.5,2689.7,3.71783]
[1724720857579,3.71695,2690.4,2689.7,7.43561]
[1724720858161,3.71695,2690.4,2689.7,3.71778]
[1724720858371,2.4579,2690.3,2689.7,3.71778]
[1724720859002,7.6550705,2690.3,2689.5,3.71806]
[1724720859199,7.6550705,2690.3,2689.6,3.0]
[1724720859516,3.9379305,2690.3,2689.7,3.71784]
[1724720860023,3.9379305,2690.3,2689.7,7.43563]
[1724720860373,3.9379305,2690.3,2689.7,3.71779]
[1724720860575,0.76548805,2690.2,2689.7,3.71779]
[1724720861076,2.4579,2690.3,2689.6,3.0]